bitfinex/quotes_SOLUSD_20240623
["timestamp","ask_amount","ask_price","bid_price","bid_amount"]
[1719144214702,27.4412,134.39,134.38,45.0]
[1719144218925,20.0,134.39,134.38,45.0]
[1719144219121,0.8616173,134.4,134.39,100.0]
[1719144219428,0.8616173,134.4,134.39,145.0]
[1719144222915,0.8616173,134.4,134.39,145.17]
[1719144223116,0.8616173,134.4,134.39,145.34]
[1719144242539,0.8616173,134.4,134.39,100.0]
[1719144243843,0.8616173,134.4,134.39,145.0]
[1719144246924,8.3020173,134.4,134.39,145.0]
[1719144247232,0.8616173,134.4,134.39,145.0]
[1719144260733,0.8616173,134.4,134.39,145.34]
[1719144263455,0.8616173,134.4,134.39,145.0]
[1719144264034,8.3020173,134.4,134.39,100.0]
[1719144264440,0.8616173,134.4,134.39,100.0]
[1719144265235,0.8616173,134.4,134.39,145.0]
[1719144292371,20.8616173,134.4,134.37,100.0]
[1719144292688,7.4415,134.38,134.37,100.0]
[1719144292859,27.4415,134.38,134.37,100.0]
[1719144294065,27.4415,134.38,134.37,145.0]
[1719144302259,27.4415,134.38,134.37,45.0]
[1719144302463,7.4423,134.37,134.36,45.0]
[1719144302680,27.4423,134.37,134.36,45.0]
[1719144303898,7.4438,134.34,134.32,100.0]
[1719144304090,7.4447,134.33,134.3,100.0]
[1719144304268,20.0,134.36,134.29,100.0]
[1719144304465,7.4456,134.31,134.29,100.0]
[1719144305877,18.6107,134.34,134.29,100.0]
[1719144306195,20.0,134.33,134.29,100.0]
[1719144306867,7.446,134.3,134.29,100.0]
[1719144307067,20.0,134.33,134.29,100.0]
[1719144307268,7.4456,134.31,134.3,45.0]
[1719144307494,27.4456,134.31,134.3,45.0]
[1719144308695,20.0,134.31,134.3,45.0]
[1719144309568,18.606,134.37,134.33,100.0]
[1719144309777,7.4432,134.35,134.34,45.0]
[1719144309976,27.4432,134.35,134.34,45.0]
[1719144312399,7.4432,134.35,134.34,45.0]
[1719144314393,7.459,134.39,134.35,100.0]
[1719144314574,19.4641173,134.4,134.37,100.0]
[1719144314575,7.459,134.38,134.37,100.0]
[1719144314773,7.459,134.38,134.37,145.0]
[1719144314995,14.9005,134.38,134.37,145.0]
[1719144315371,7.4415,134.38,134.37,145.0]
[1719144315888,7.4412,134.39,134.37,145.0]
[1719144316188,7.4412,134.39,134.38,45.0]
[1719144316510,8.3022173,134.4,134.39,100.0]
[1719144316678,8.3022173,134.4,134.39,145.0]
[1719144321409,0.8616173,134.4,134.39,145.0]
[1719144326883,0.8616173,134.4,134.39,151.7129]
[1719144327984,0.8616173,134.4,134.39,159.1539]
[1719144334198,26.0464,134.5,134.46,100.0]
[1719144334416,7.436,134.48,134.47,45.0]
[1719144334708,27.436,134.48,134.47,45.0]
[1719144358304,7.436,134.48,134.47,45.0]
[1719144363417,18.586,134.51,134.49,100.0]
[1719144363610,18.586,134.51,134.5,45.0]
[1719144363807,46.0203,134.51,134.5,45.0]
[1719144369425,27.4343,134.51,134.5,45.0]
[1719144388543,16.5652,134.5,134.41,100.0]
[1719144388851,7.4391,134.43,134.41,100.0]
[1719144391026,18.5933,134.46,134.43,100.0]
[1719144391227,20.0,134.45,134.43,100.0]
[1719144391457,7.4382,134.44,134.43,100.0]
[1719144391634,27.4382,134.44,134.43,100.0]
[1719144391833,27.4382,134.44,134.43,145.0]
[1719144405568,18.59,134.49,134.46,100.0]
[1719144405874,7.4366,134.47,134.46,100.0]
[1719144406169,27.4366,134.47,134.46,145.0]
[1719144423065,18.593,134.46,134.42,116.2306]
[1719144423366,18.593,134.46,134.42,100.0]
[1719144423367,7.4388,134.43,134.42,100.0]
[1719144424579,7.4388,134.43,134.42,145.0]
[1719144426280,7.4388,134.43,134.42,45.0]
[1719144426582,7.4394,134.42,134.41,45.0]
[1719144427579,7.439,134.43,134.42,100.0]
[1719144427790,7.439,134.43,134.42,145.0]
[1719144428558,7.438,134.45,134.42,145.0]
[1719144428757,20.0,134.44,134.43,45.0]
[1719144429261,27.4382,134.44,134.43,45.0]
[1719144432785,7.4382,134.44,134.43,45.0]
[1719144434281,7.4399,134.41,134.4,100.0]
[1719144434480,7.4404,134.4,134.39,6.3539]
[1719144435480,7.4393,134.42,134.41,100.0]
[1719144436902,7.4393,134.42,134.41,145.0]
[1719144442691,7.4377,134.45,134.44,100.0]
[1719144442871,27.4377,134.45,134.44,145.0]
[1719144443072,27.4377,134.45,134.44,45.0]
[1719144443369,7.4382,134.44,134.43,45.0]
[1719144460492,27.4378,134.45,134.43,45.0]
[1719144465508,20.0,134.45,134.44,100.0]
[1719144465801,7.4372,134.46,134.44,145.0]
[1719144465988,7.4372,134.46,134.45,45.0]
[1719144466190,27.4372,134.46,134.45,45.0]
[1719144466605,42.6128,134.5,134.46,100.0]
[1719144466799,7.436,134.48,134.47,45.0]
[1719144466986,27.436,134.48,134.47,45.0]
[1719144472619,46.0261,134.48,134.47,45.0]
[1719144482808,20.0,134.48,134.42,16.1509]
[1719144483118,7.4393,134.42,134.41,100.0]
[1719144484301,7.4389,134.43,134.41,145.0]
[1719144484502,7.4389,134.43,134.42,45.0]
[1719144486022,7.4384,134.44,134.42,45.0]
[1719144488228,7.4384,134.44,134.43,100.0]
[1719144488524,27.4384,134.44,134.43,145.0]
[1719144488703,7.4406,134.4,134.37,100.0]
[1719144488903,18.597,134.43,134.37,100.0]
[1719144488904,7.4411,134.39,134.37,100.0]
[1719144490428,18.5996,134.42,134.34,6.0617]
[1719144490729,7.442,134.38,134.36,100.0]
[1719144491403,7.4406,134.4,134.38,100.0]
[1719144491631,20.0,134.39,134.38,100.0]
[1719144492128,27.441,134.39,134.36,100.0]
[1719144492421,7.4417,134.38,134.36,100.0]
[1719144492624,7.4428,134.36,134.34,100.0]
[1719144493725,7.4423,134.37,134.34,100.0]
[1719144494029,7.4421,134.37,134.36,100.0]
[1719144494227,7.4421,134.37,134.36,145.0]
[1719144494228,27.4421,134.37,134.36,145.0]
[1719144496005,7.4414,134.39,134.36,145.0]
[1719144496210,18.6011,134.4,134.37,45.0]
[1719144496418,20.0,134.39,134.37,45.0]
[1719144497021,7.4416,134.38,134.37,45.0]
[1719144498237,7.4411,134.39,134.38,100.0]
[1719144498435,7.4406,134.4,134.38,145.0]
[1719144498734,7.4406,134.4,134.38,100.0]
[1719144499030,7.4406,134.4,134.39,45.0]
[1719144513438,7.4401,134.41,134.39,45.0]
[1719144514235,7.4404,134.4,134.39,45.0]
[1719144526145,7.4385,134.44,134.43,100.0]
[1719144526321,7.4385,134.44,134.43,145.0]
[1719144526322,27.4385,134.44,134.43,145.0]
[1719144528142,7.4385,134.44,134.43,145.0]
[1719144553863,7.4393,134.42,134.41,100.0]
[1719144554174,7.4404,134.4,134.39,122.4453]
[1719144554385,7.4404,134.4,134.39,106.2497]
[1719144555059,7.44,134.41,134.39,106.2497]
[1719144555458,7.44,134.41,134.4,45.0]
[1719144556757,7.4395,134.42,134.4,45.0]
[1719144557358,7.4395,134.42,134.41,100.0]
[1719144557680,7.4395,134.42,134.41,145.0]
[1719144558147,7.4388,134.43,134.41,145.0]
[1719144558353,7.4383,134.44,134.43,100.0]
[1719144558575,7.4383,134.44,134.43,145.0]
[1719144558775,27.4383,134.44,134.43,145.0]
[1719144561085,7.4383,134.44,134.43,145.0]
[1719144564794,18.5925,134.47,134.45,100.0]
[1719144564964,20.0,134.46,134.45,100.0]
[1719144565155,20.0,134.46,134.45,145.0]
[1719144565992,27.4371,134.46,134.45,145.0]
[1719144572685,27.4371,134.46,134.45,45.0]
[1719144572989,7.4377,134.45,134.44,45.0]
[1719144573173,27.4377,134.45,134.44,45.0]
[1719144581277,20.0,134.45,134.44,45.0]
[1719144582985,27.4377,134.45,134.44,45.0]
[1719144591795,46.0319,134.45,134.44,45.0]
[1719144597303,27.4377,134.45,134.44,45.0]
[1719144605508,7.4393,134.42,134.41,100.0]
[1719144606705,7.4393,134.42,134.41,145.0]
[1719144608084,7.439,134.43,134.41,145.0]
[1719144608290,7.439,134.43,134.42,45.0]
[1719144608487,27.439,134.43,134.42,45.0]
[1719144614019,18.5897,134.49,134.44,100.0]
[1719144614198,7.4372,134.46,134.45,45.0]
[1719144614396,27.4372,134.46,134.45,45.0]
[1719144617909,7.4388,134.43,134.4,100.0]
[1719144618207,7.4391,134.43,134.42,100.0]
[1719144618384,7.4384,134.44,134.42,100.0]
[1719144619413,7.4384,134.44,134.43,45.0]
[1719144620817,7.4384,134.44,134.39,107.4409]
[1719144621116,7.4396,134.42,134.39,100.0]
[1719144621296,7.44,134.41,134.39,100.0]
[1719144621496,7.4413,134.39,134.36,122.7468]
[1719144621691,7.4412,134.39,134.36,122.7468]
[1719144622715,7.4406,134.4,134.36,122.7468]
[1719144622901,7.4406,134.4,134.37,45.0]
[1719144626705,7.441,134.39,134.37,45.0]
[1719144626899,7.4415,134.38,134.37,45.0]
[1719144627113,7.4411,134.39,134.37,45.0]
[1719144627795,7.4415,134.38,134.37,45.0]
[1719144628423,7.4422,134.37,134.34,100.0]
[1719144630017,7.4422,134.37,134.35,45.0]
[1719144635632,7.4416,134.38,134.35,45.0]
[1719144635811,27.4422,134.37,134.35,45.0]
[1719144644725,7.4426,134.36,134.35,45.0]
[1719144644915,27.4426,134.36,134.32,106.3722]
[1719144645121,20.0,134.35,134.33,45.0]
[1719144645812,20.0,134.35,134.32,6.3722]
[1719144646825,27.4432,134.35,134.3,107.4457]
[1719144647034,27.4432,134.35,134.31,45.0]
[1719144647220,27.4432,134.35,134.29,15.7998]
[1719144647221,7.4438,134.34,134.29,23.2462]
[1719144647527,7.4438,134.34,134.28,106.0558]
[1719144647528,7.4444,134.33,134.28,113.5027]
[1719144649208,7.4444,134.33,134.28,107.4469]
[1719144650038,7.4444,134.33,134.28,100.0]
[1719144650237,7.4444,134.33,134.29,45.0]
[1719144650726,20.0,134.32,134.29,45.0]
[1719144650923,38.6085,134.35,134.29,45.0]
[1719144651735,38.6085,134.35,134.28,100.0]
[1719144652242,7.4455,134.31,134.28,100.0]
[1719144652420,20.0,134.3,134.28,100.0]
[1719144652618,27.446,134.3,134.28,100.0]
[1719144657448,15.384,134.29,134.24,100.0]
[1719144657761,7.4478,134.27,134.24,100.0]
[1719144658254,7.4482,134.26,134.24,100.0]
[1719144658750,7.4479,134.27,134.24,100.0]
[1719144659669,7.4479,134.27,134.25,45.0]
[1719144660554,7.4482,134.26,134.25,45.0]
[1719144661349,27.4482,134.26,134.25,45.0]
[1719144664144,15.384,134.32,134.26,100.0]
[1719144664448,15.384,134.32,134.27,45.0]
[1719144664646,7.4471,134.28,134.27,45.0]
[1719144665540,26.0708,134.34,134.28,100.0]
[1719144665763,7.4461,134.3,134.29,45.0]
[1719144666069,20.0,134.3,134.26,100.0]
[1719144666247,7.46,134.33,134.27,45.0]
[1719144666450,20.0,134.32,134.27,45.0]
[1719144666942,7.4472,134.28,134.27,45.0]
[1719144667349,7.4472,134.28,134.24,122.6147]
[1719144667350,7.4478,134.27,134.24,122.6147]
[1719144667549,7.4478,134.27,134.25,45.0]
[1719144667752,7.4472,134.28,134.26,100.0]
[1719144667943,7.4472,134.28,134.27,45.0]
[1719144668158,20.0,134.32,134.28,100.0]
[1719144668351,27.46,134.33,134.29,45.0]
[1719144668870,7.446,134.3,134.29,45.0]
[1719144669373,20.0,134.3,134.24,122.6147]
[1719144669542,7.448,134.27,134.24,122.6147]
[1719144669861,7.4486,134.26,134.24,100.0]
[1719144670247,18.6163,134.3,134.24,100.0]
[1719144670457,20.0,134.29,134.24,100.0]
[1719144670658,7.4473,134.28,134.24,100.0]
[1719144671179,7.4473,134.28,134.25,45.0]
[1719144672268,7.4477,134.27,134.25,45.0]
[1719144679577,7.4482,134.26,134.25,45.0]
[1719144679777,20.0,134.26,134.22,100.0]
[1719144679953,18.618,134.28,134.23,45.0]
[1719144680467,7.4491,134.25,134.23,45.0]
[1719144682476,7.4491,134.25,134.22,45.0]
[1719144684467,20.0,134.27,134.21,6.628]
[1719144684677,7.4502,134.23,134.18,114.0805]
[1719144685768,7.4502,134.23,134.19,45.0]
[1719144686273,7.4504,134.22,134.19,45.0]
[1719144686569,7.4504,134.22,134.18,106.628]
[1719144686752,7.4504,134.22,134.18,6.628]
[1719144687847,7.451,134.21,134.18,6.628]
[1719144688053,7.4523,134.19,134.15,6.628]
[1719144688877,343.4628,134.26,134.15,6.628]
[1719144688878,7.4529,134.18,134.15,6.628]
[1719144690546,7.4529,134.18,134.16,45.0]
[1719144691186,7.4539,134.16,134.12,100.0]
[1719144692653,7.4539,134.16,134.13,45.0]
[1719144693484,7.4543,134.15,134.13,45.0]
[1719144694268,18.6302,134.2,134.14,100.0]
[1719144694574,20.0,134.19,134.15,45.0]
[1719144694772,7.4529,134.18,134.15,45.0]
[1719144694985,20.0,134.17,134.15,45.0]
[1719144695281,27.4534,134.17,134.15,45.0]
[1719144696594,7.4537,134.16,134.15,45.0]
[1719144696763,27.4537,134.16,134.15,45.0]
[1719144697193,7.4546,134.15,134.12,100.0]
[1719144697369,7.4546,134.15,134.13,45.0]
[1719144698183,7.4548,134.14,134.13,45.0]
[1719144698370,7.4548,134.14,134.12,45.0]
[1719144698970,7.4554,134.13,134.12,45.0]
[1719144699778,7.4551,134.14,134.12,45.0]
[1719144700881,7.4551,134.14,134.09,107.4575]
[1719144702499,7.4551,134.14,134.1,45.0]
[1719144704006,27.4543,134.16,134.11,100.0]
[1719144704296,20.0,134.17,134.14,100.0]
[1719144704502,7.4531,134.18,134.15,45.0]
[1719144704686,20.0,134.17,134.15,45.0]
[1719144706199,7.4531,134.18,134.15,45.0]
[1719144706394,22.9931,134.21,134.15,45.0]
[1719144706609,7.4521,134.19,134.16,100.0]
[1719144706894,7.4521,134.19,134.17,45.0]
[1719144707885,7.46,134.22,134.17,45.0]
[1719144708191,14.9113,134.21,134.17,45.0]
[1719144709585,7.4516,134.2,134.17,45.0]
[1719144719714,7.4516,134.2,134.17,51.5579]
[1719144719904,7.4516,134.2,134.19,100.0]
[1719144720105,7.46,134.25,134.19,145.0]
[1719144720287,7.4505,134.22,134.2,45.0]
[1719144722010,7.45,134.23,134.2,45.0]
[1719144722202,7.4495,134.24,134.21,100.0]
[1719144722516,7.4498,134.23,134.22,45.0]
[1719144723200,7.4506,134.22,134.19,100.0]
[1719144723495,7.4506,134.22,134.2,45.0]
[1719144724414,7.451,134.21,134.2,45.0]
[1719144725798,7.4516,134.2,134.17,106.5579]
[1719144727118,7.4516,134.2,134.17,6.5579]
[1719144727311,7.4516,134.2,134.18,45.0]
[1719144727518,7.4516,134.2,134.17,45.0]
[1719144736726,7.4525,134.19,134.15,100.0]
[1719144736916,18.6266,134.22,134.15,100.0]
[1719144737101,20.0,134.21,134.15,100.0]
[1719144737716,7.4518,134.2,134.15,107.4543]
[1719144737915,20.0,134.21,134.17,100.0]
[1719144737916,27.4512,134.21,134.17,100.0]
[1719144738224,27.4512,134.21,134.18,45.0]
[1719144739135,7.4516,134.2,134.18,45.0]
[1719144743034,7.4521,134.19,134.18,45.0]
[1719144751343,20.0,134.21,134.18,45.0]
[1719144751520,20.0,134.22,134.18,45.0]
[1719144753146,7.4526,134.18,134.13,114.0131]
[1719144753324,7.4526,134.18,134.14,45.0]
[1719144754339,7.4533,134.17,134.13,106.5579]
[1719144754540,7.4528,134.18,134.13,114.0133]
[1719144755037,7.4533,134.17,134.13,106.5579]
[1719144756354,7.4533,134.17,134.14,45.0]
[1719144757244,7.4538,134.16,134.14,45.0]
[1719144757424,7.4538,134.16,134.13,45.0]
[1719144765725,7.4544,134.15,134.13,45.0]
[1719144765958,7.4544,134.15,134.1,13.65]
[1719144765959,7.4555,134.13,134.09,100.0]
[1719144767254,7.4555,134.13,134.1,45.0]
[1719144767452,7.4551,134.14,134.1,45.0]
[1719144768633,7.4554,134.13,134.1,45.0]
[1719144768963,7.4551,134.14,134.1,45.0]
[1719144770057,7.4555,134.13,134.1,45.0]
[1719144772140,7.4565,134.11,134.1,45.0]
[1719144772359,7.4565,134.11,134.09,45.0]
[1719144772736,7.4565,134.11,134.08,15.1721]
[1719144772932,7.4565,134.11,134.07,100.8616173]
[1719144773539,16.4947,134.15,134.07,100.8616173]
[1719144773745,27.4552,134.14,134.09,107.4576]
[1719144773955,27.4552,134.14,134.1,45.0]
[1719144774189,7.4556,134.13,134.1,45.0]
[1719144774355,20.0,134.12,134.1,45.0]
[1719144774954,7.4556,134.13,134.1,45.0]
[1719144775331,18.6339,134.17,134.1,45.0]
[1719144775332,7.456,134.12,134.1,45.0]
[1719144775533,7.4556,134.13,134.1,45.0]
[1719144785267,7.456,134.12,134.1,45.0]
[1719144789569,7.4545,134.15,134.13,100.0]
[1719144789750,7.4545,134.15,134.14,45.0]
[1719144794265,7.4543,134.15,134.14,45.0]
[1719144794450,26.0901,134.15,134.14,45.0]
[1719144794645,18.6358,134.15,134.1,16.0826]
[1719144794954,7.4569,134.11,134.09,6.5203]
[1719144795370,7.4569,134.11,134.07,116.9442173]
[1719144796706,7.4569,134.11,134.08,45.0]
[1719144797475,20.0,134.14,134.09,100.0]
[1719144797674,20.0,134.14,134.1,45.0]
[1719144797848,7.4559,134.13,134.1,45.0]
[1719144798054,7.4561,134.12,134.1,45.0]
[1719144800191,7.4555,134.13,134.1,51.4945]
[1719144800981,7.456,134.12,134.1,51.4945]
[1719144801182,18.633,134.18,134.11,100.0]
[1719144801402,7.4543,134.15,134.12,45.0]
[1719144801557,20.0,134.14,134.12,45.0]
[1719144801974,7.4539,134.16,134.13,116.0826]
[1719144802155,7.4539,134.16,134.14,45.0]
[1719144802864,18.6284,134.21,134.15,100.0]
[1719144803072,18.6284,134.21,134.16,45.0]
[1719144803297,18.6284,134.21,134.14,45.0]
[1719144803465,20.0,134.2,134.14,45.0]
[1719144803963,7.4532,134.17,134.14,45.0]
[1719144806866,7.4527,134.18,134.14,45.0]
[1719144816807,7.4532,134.17,134.14,45.0]
[1719144821204,20.0,134.2,134.11,100.0]
[1719144821412,270.3544,134.23,134.11,100.0]
[1719144821413,7.4546,134.15,134.11,100.0]
[1719144821702,7.4549,134.14,134.11,100.0]
[1719144822113,7.4545,134.15,134.11,100.0]
[1719144827830,7.4539,134.16,134.11,107.4564]
[1719144831023,7.4557,134.13,134.11,100.0]
[1719144831224,18.6348,134.16,134.11,100.0]
[1719144831225,7.4549,134.14,134.11,100.0]
[1719144831522,7.4545,134.15,134.11,100.0]
[1719144836323,7.4539,134.16,134.11,107.4564]
[1719144838228,7.4543,134.15,134.11,100.0]
[1719144839401,7.454,134.16,134.13,100.0]
[1719144839607,18.6318,134.18,134.13,100.0]
[1719144839608,15.028,134.19,134.13,100.0]
[1719144839807,20.0,134.18,134.13,100.0]
[1719144840528,7.4534,134.17,134.13,100.0]
[1719144845018,7.4528,134.18,134.15,100.0]
[1719144845619,7.4532,134.17,134.15,100.0]
[1719144848108,15.028,134.19,134.15,100.0]
[1719144848433,7.4528,134.18,134.15,100.0]
[1719144853716,15.028,134.19,134.15,100.0]
[1719144854313,7.4533,134.17,134.15,100.0]
[1719144854923,7.4529,134.18,134.15,100.0]
[1719144855732,15.028,134.19,134.13,7.4554]
[1719144855733,15.028,134.19,134.13,100.0]
[1719144855935,15.028,134.19,134.1,6.4945]
[1719144855936,7.454,134.16,134.11,107.4565]
[1719144856137,7.4543,134.15,134.11,107.4565]
[1719144856333,7.4543,134.15,134.11,100.0]
[1719144857321,7.4543,134.15,134.11,107.4565]
[1719144857526,7.4539,134.16,134.11,107.4565]
[1719144858843,7.4565,134.11,134.1,6.4945]
[1719144859051,7.455,134.14,134.1,6.4945]
[1719144859745,7.4545,134.15,134.1,6.4945]
[1719144860124,7.455,134.14,134.1,6.4945]
[1719144862346,7.4554,134.13,134.1,6.4945]
[1719144872461,7.4554,134.13,134.09,100.0]
[1719144875572,7.4554,134.13,134.09,107.4576]
[1719144875869,7.4551,134.14,134.09,107.4576]
[1719144878364,7.4554,134.13,134.09,107.4576]
[1719144880367,7.4554,134.13,134.09,100.0]
[1719144886872,7.4554,134.13,134.09,107.4576]
[1719144887473,7.4547,134.15,134.11,100.0]
[1719144887660,20.0,134.14,134.11,100.0]
[1719144887845,20.0,134.14,134.11,107.4565]
[1719144889360,20.0,134.14,134.11,100.0]
[1719144889565,7.4547,134.15,134.11,100.0]
[1719144891487,18.6304,134.19,134.13,100.0]
[1719144891664,7.4535,134.17,134.13,100.0]
[1719144892004,7.4537,134.16,134.13,100.0]
[1719144894970,7.4534,134.17,134.13,100.0]
[1719144896783,7.46,134.22,134.13,100.0]
[1719144897085,7.4524,134.19,134.14,7.4548]
[1719144897385,7.4524,134.19,134.15,100.0]
[1719144901988,7.4524,134.19,134.16,1.48916133]
[1719144902778,7.4512,134.21,134.18,100.0]
[1719144902965,261.45,134.23,134.2,100.0]
[1719144903165,20.0,134.22,134.2,100.0]
[1719144903364,27.4499,134.23,134.2,100.0]
[1719144903554,7.4499,134.23,134.2,100.0]
[1719144903760,20.0,134.22,134.2,100.0]
[1719144904982,27.4504,134.22,134.2,100.0]
[1719144905196,7.4504,134.22,134.2,100.0]
[1719144905771,7.4512,134.21,134.18,100.0]
[1719144906686,7.4506,134.22,134.18,100.0]
[1719144907077,18.62,134.27,134.2,100.0]
[1719144907281,20.0,134.26,134.2,100.0]
[1719144907974,7.4499,134.23,134.2,100.0]
[1719144911708,7.4499,134.23,134.18,107.4524]
[1719144911884,7.4504,134.22,134.18,100.0]
[1719144914105,7.4501,134.23,134.18,107.4526]
[1719144918096,20.0,134.27,134.21,100.0]
[1719144918396,20.0,134.27,134.21,107.4506]
[1719144918397,7.4487,134.26,134.21,107.4506]
[1719144918904,7.476,134.29,134.24,100.0]
[1719144919287,14.9227,134.29,134.24,107.4492]
[1719144920383,14.9227,134.29,134.24,100.0]
[1719144921097,7.4472,134.28,134.24,100.0]
[1719144924920,7.476,134.3,134.22,100.0]
[1719144925107,7.4483,134.26,134.22,100.0]
[1719144927200,7.4479,134.27,134.22,107.4503]
[1719144927506,7.4486,134.26,134.22,100.0]
[1719144927716,7.476,134.3,134.2,100.0]
[1719144928020,27.476,134.29,134.2,100.0]
[1719144929088,7.4495,134.24,134.2,100.0]
[1719144930895,7.4489,134.25,134.2,107.4515]
[1719144934423,7.4493,134.24,134.2,100.0]
[1719144935820,7.4493,134.24,134.21,15.9981]
[1719144936197,7.4493,134.24,134.22,6.1719]
[1719144942828,7.4487,134.26,134.22,106.1719]
[1719144943015,46.0926,134.29,134.22,106.1719]
[1719144943201,7.4491,134.25,134.22,106.1719]
[1719144945820,46.0926,134.29,134.22,106.1719]
[1719144946326,38.6166,134.29,134.22,106.1719]
[1719144947030,7.4482,134.26,134.22,106.1719]
[1719144955026,7.4478,134.27,134.23,15.2352]
[1719144955220,20.0,134.29,134.24,100.0]
[1719144955407,20.0,134.3,134.24,100.0]
[1719144955608,7.4474,134.28,134.24,100.0]
[1719144956433,7.4476,134.27,134.24,100.0]
[1719144956941,7.4473,134.28,134.24,100.0]
[1719144961649,7.4467,134.29,134.26,100.0]
[1719144962355,7.4467,134.29,134.25,6.3526]
[1719144974325,7.4467,134.29,134.26,100.0]
[1719144983070,7.4462,134.3,134.26,100.0]
[1719144992273,18.6162,134.3,134.25,6.3526]
[1719144992478,7.4478,134.27,134.23,15.2352]
[1719144992647,18.6162,134.3,134.23,15.2352]
[1719144992848,20.0,134.29,134.23,15.2352]
[1719144993866,18.6179,134.28,134.22,100.0]
[1719144994079,20.0,134.27,134.22,100.0]
[1719144994643,7.449,134.25,134.22,100.0]
[1719144994855,7.4484,134.26,134.22,100.0]
[1719145000476,16.2291,134.26,134.18,100.0]
[1719145000657,20.0,134.25,134.18,100.0]
[1719145001879,27.476,134.25,134.18,100.0]
[1719145002076,7.4502,134.23,134.18,107.4526]
[1719145003678,7.4495,134.24,134.18,107.4526]
[1719145006581,20.0,134.25,134.16,100.0]
[1719145006768,7.4506,134.22,134.16,107.4534]
[1719145006970,7.4499,134.23,134.18,100.0]
[1719145007174,7.45,134.23,134.18,107.4522]
[1719145007474,7.45,134.23,134.18,100.0]
[1719145009359,7.4504,134.22,134.18,100.0]
[1719145010483,7.45,134.23,134.18,100.0]
[1719145010778,7.45,134.23,134.18,107.4526]
[1719145011383,7.4494,134.24,134.19,7.4519]
[1719145011679,20.0,134.23,134.19,7.4519]
[1719145011881,7.4494,134.24,134.19,7.4519]
[1719145012273,7.4494,134.24,134.2,100.0]
[1719145012477,27.4489,134.25,134.2,100.0]
[1719145013179,7.4494,134.24,134.2,100.0]
[1719145015079,7.45,134.23,134.2,100.0]
[1719145021485,20.0,134.25,134.22,100.0]
[1719145021691,18.6204,134.27,134.22,100.0]
[1719145022509,7.4491,134.25,134.22,100.0]
[1719145026698,7.4491,134.25,134.24,100.0]
[1719145027387,7.4484,134.26,134.24,100.0]
[1719145029888,7.4478,134.27,134.24,100.0]